[Event "Titled Tuesday Blitz June 20 Early 2023"]
[White "Suarez Uriel, Adrian"]
[Black "Fonseca Manrique, Enrique"]
[WhiteFideId "22230874"]
[BlackFideId "5114330"]
[WhiteElo "2331"]
[BlackElo "2541"]
[Result "1-0"]
[Round "6"]
[TimeControl "180+2"]
[Date "2023.06.20"]
[WhiteClock "0:02:33"]
[BlackClock "0:02:17"]
[Board "132"]

1. e4 {[%clk 0:03:00]}  c5 {[%clk 0:02:59]} 2. Ne2 {[%clk 0:03:00]}  e6 {[%clk 0:02:59]} 3. d4 {[%clk 0:02:55]}  cxd4 {[%clk 0:02:59]} 4. Nxd4 {[%clk 0:02:56]}  Nc6 {[%clk 0:02:59]} 5. Nc3 {[%clk 0:02:56]}  Qc7 {[%clk 0:02:59]} 6. Be3 {[%clk 0:02:56]}  a6 {[%clk 0:02:59]} 7. Qf3 {[%clk 0:02:56]}  b5 {[%clk 0:02:59]} 8. Qg3 {[%clk 0:02:55]}  Qxg3 {[%clk 0:02:59]} 9. hxg3 {[%clk 0:02:56]}  Bb7 {[%clk 0:03:00]} 10. f3 {[%clk 0:02:54]}  Nge7 {[%clk 0:02:53]} 11. O-O-O {[%clk 0:02:48]}  Ne5 {[%clk 0:02:47]} 12. Kb1 {[%clk 0:02:42]}  f6 {[%clk 0:02:45]} 13. g4 {[%clk 0:02:41]}  d5 {[%clk 0:02:17]} 14. Nxe6 {[%clk 0:02:33]} 1-0


[Site "https://www.chess.com"]

[Event "Titled Tuesday Blitz June 20 Early 2023"]
[White "Kochiev, Ivan"]
[Black "Goldin, Roman"]
[WhiteFideId "2917890"]
[BlackFideId "2803860"]
[WhiteElo "2287"]
[BlackElo "2312"]
[Result "1-0"]
[Round "6"]
[TimeControl "180+2"]
[Date "2023.06.20"]
[WhiteClock "0:00:55"]
[BlackClock "0:00:00"]
[Board "133"]

1. e4 {[%clk 0:03:00]}  Nc6 {[%clk 0:02:59]} 2. Nf3 {[%clk 0:02:50]}  e5 {[%clk 0:02:57]} 3. Bc4 {[%clk 0:02:46]}  Nf6 {[%clk 0:02:56]} 4. d3 {[%clk 0:02:42]}  Be7 {[%clk 0:02:55]} 5. c3 {[%clk 0:02:42]}  O-O {[%clk 0:02:54]} 6. O-O {[%clk 0:02:43]}  a6 {[%clk 0:02:51]} 7. Bb3 {[%clk 0:02:43]}  d5 {[%clk 0:02:51]} 8. exd5 {[%clk 0:02:43]}  Nxd5 {[%clk 0:02:51]} 9. h3 {[%clk 0:02:44]}  Bf5 {[%clk 0:02:47]} 10. Re1 {[%clk 0:02:42]}  Nb6 {[%clk 0:02:47]} 11. Nxe5 {[%clk 0:02:38]}  Nxe5 {[%clk 0:02:39]} 12. Rxe5 {[%clk 0:02:39]}  Bg6 {[%clk 0:01:49]} 13. d4 {[%clk 0:02:38]}  c5 {[%clk 0:01:46]} 14. Re1 {[%clk 0:02:16]}  cxd4 {[%clk 0:01:42]} 15. cxd4 {[%clk 0:02:14]}  Bd6 {[%clk 0:01:29]} 16. Nc3 {[%clk 0:02:12]}  Qh4 {[%clk 0:01:22]} 17. Be3 {[%clk 0:02:08]}  Rad8 {[%clk 0:01:19]} 18. Qf3 {[%clk 0:02:08]}  Rd7 {[%clk 0:01:09]} 19. Rad1 {[%clk 0:02:01]}  Bh5 {[%clk 0:01:04]} 20. g4 {[%clk 0:02:01]}  Bg6 {[%clk 0:00:56]} 21. Ne2 {[%clk 0:01:41]}  h5 {[%clk 0:00:40]} 22. Nf4 {[%clk 0:01:36]}  Bxf4 {[%clk 0:00:30]} 23. Bxf4 {[%clk 0:01:36]}  Rfd8 {[%clk 0:00:18]} 24. Bg3 {[%clk 0:01:21]}  Qg5 {[%clk 0:00:17]} 25. Re5 {[%clk 0:01:21]}  Qf6 {[%clk 0:00:14]} 26. Qe3 {[%clk 0:01:08]}  hxg4 {[%clk 0:00:13]} 27. hxg4 {[%clk 0:01:09]}  Nd5 {[%clk 0:00:05]} 28. Bxd5 {[%clk 0:00:57]}  Rxd5 {[%clk 0:00:05]} 29. Re8+ {[%clk 0:00:57]}  Kh7 {[%clk 0:00:03]} 30. Kg2 {[%clk 0:00:57]}  Rxe8 {[%clk 0:00:00]} 31. Qxe8 {[%clk 0:00:55]} 1-0


[Site "https://www.chess.com"]

[Event "Titled Tuesday Blitz June 20 Early 2023"]
[White "Ritvin, Stanislav"]
[Black "Devaev, Alexander"]
[WhiteFideId "2011751"]
[BlackFideId "4169395"]
[WhiteElo "2380"]
[BlackElo "2172"]
[Result "1-0"]
[Round "6"]
[TimeControl "180+2"]
[Date "2023.06.20"]
[WhiteClock "0:00:27"]
[BlackClock "0:00:00"]
[Board "140"]

1. d4 {[%clk 0:03:00]}  Nf6 {[%clk 0:02:56]} 2. c4 {[%clk 0:03:01]}  e6 {[%clk 0:02:54]} 3. Nf3 {[%clk 0:03:00]}  c5 {[%clk 0:02:54]} 4. d5 {[%clk 0:03:00]}  d6 {[%clk 0:02:55]} 5. Nc3 {[%clk 0:02:58]}  e5 {[%clk 0:02:55]} 6. e4 {[%clk 0:02:57]}  a6 {[%clk 0:02:56]} 7. Be2 {[%clk 0:02:55]}  Be7 {[%clk 0:02:57]} 8. Be3 {[%clk 0:02:55]}  Bg4 {[%clk 0:02:54]} 9. Nd2 {[%clk 0:02:53]}  Bc8 {[%clk 0:02:53]} 10. O-O {[%clk 0:02:51]}  Nbd7 {[%clk 0:02:54]} 11. a3 {[%clk 0:02:49]}  O-O {[%clk 0:02:52]} 12. b4 {[%clk 0:02:49]}  b6 {[%clk 0:02:53]} 13. Rb1 {[%clk 0:02:48]}  Ne8 {[%clk 0:02:45]} 14. Qc2 {[%clk 0:02:42]}  g6 {[%clk 0:02:44]} 15. Na4 {[%clk 0:02:42]}  f5 {[%clk 0:02:38]} 16. f3 {[%clk 0:02:35]}  f4 {[%clk 0:02:35]} 17. Bf2 {[%clk 0:02:35]}  Bh4 {[%clk 0:02:31]} 18. Bxh4 {[%clk 0:02:29]}  Qxh4 {[%clk 0:02:31]} 19. bxc5 {[%clk 0:02:30]}  bxc5 {[%clk 0:02:31]} 20. Nb6 {[%clk 0:02:30]}  Nxb6 {[%clk 0:02:31]} 21. Rxb6 {[%clk 0:02:31]}  Qe7 {[%clk 0:02:21]} 22. Rfb1 {[%clk 0:02:27]}  g5 {[%clk 0:02:21]} 23. Rb8 {[%clk 0:02:21]}  Rxb8 {[%clk 0:02:03]} 24. Rxb8 {[%clk 0:02:22]}  Qc7 {[%clk 0:02:03]} 25. Qb2 {[%clk 0:02:22]}  Rf7 {[%clk 0:01:54]} 26. Qb6 {[%clk 0:02:22]}  Qxb6 {[%clk 0:01:54]} 27. Rxb6 {[%clk 0:02:21]}  Rb7 {[%clk 0:01:54]} 28. Rxb7 {[%clk 0:02:22]}  Bxb7 {[%clk 0:01:54]} 29. Nb3 {[%clk 0:02:22]}  Bc8 {[%clk 0:01:51]} 30. Na5 {[%clk 0:02:22]}  Kf7 {[%clk 0:01:47]} 31. Bd1 {[%clk 0:02:23]}  Bd7 {[%clk 0:01:46]} 32. Kf2 {[%clk 0:02:19]}  Ke7 {[%clk 0:01:46]} 33. Ke1 {[%clk 0:02:05]}  Kd8 {[%clk 0:01:47]} 34. Kd2 {[%clk 0:02:00]}  Kc7 {[%clk 0:01:47]} 35. Kc3 {[%clk 0:02:01]}  Kb6 {[%clk 0:01:48]} 36. Nb3 {[%clk 0:02:01]}  Ba4 {[%clk 0:01:40]} 37. Bc2 {[%clk 0:02:01]}  Bxb3 {[%clk 0:01:37]} 38. Bxb3 {[%clk 0:01:58]}  h5 {[%clk 0:01:36]} 39. Ba4 {[%clk 0:01:56]}  Nf6 {[%clk 0:01:34]} 40. h3 {[%clk 0:01:54]}  g4 {[%clk 0:01:34]} 41. hxg4 {[%clk 0:01:31]}  hxg4 {[%clk 0:01:33]} 42. Kd2 {[%clk 0:01:30]}  Ka5 {[%clk 0:01:24]} 43. Bc6 {[%clk 0:01:29]}  g3 {[%clk 0:01:21]} 44. Kd3 {[%clk 0:01:26]}  Ng8 {[%clk 0:01:19]} 45. Kd2 {[%clk 0:01:20]}  Ne7 {[%clk 0:01:19]} 46. Bd7 {[%clk 0:01:20]}  Ng6 {[%clk 0:01:19]} 47. Ke2 {[%clk 0:01:18]}  Nf8 {[%clk 0:01:14]} 48. Bc6 {[%clk 0:01:14]}  Ng6 {[%clk 0:01:11]} 49. Be8 {[%clk 0:01:11]}  Ne7 {[%clk 0:01:10]} 50. Bd7 {[%clk 0:01:12]}  Kb6 {[%clk 0:01:10]} 51. Kd3 {[%clk 0:01:07]}  Kc7 {[%clk 0:01:10]} 52. Be8 {[%clk 0:01:05]}  Nc8 {[%clk 0:01:10]} 53. Bc6 {[%clk 0:01:00]}  Na7 {[%clk 0:01:08]} 54. Be8 {[%clk 0:00:59]}  Kd8 {[%clk 0:01:09]} 55. Ba4 {[%clk 0:00:59]}  Ke7 {[%clk 0:01:09]} 56. Kd2 {[%clk 0:00:56]}  Nc8 {[%clk 0:01:09]} 57. Bc6 {[%clk 0:00:54]}  Nb6 {[%clk 0:01:09]} 58. Kd3 {[%clk 0:00:54]}  Kd8 {[%clk 0:01:09]} 59. Kc3 {[%clk 0:00:53]}  Kc7 {[%clk 0:01:09]} 60. Kd3 {[%clk 0:00:53]}  Nc8 {[%clk 0:01:10]} 61. Be8 {[%clk 0:00:51]}  Ne7 {[%clk 0:01:09]} 62. Kd2 {[%clk 0:00:49]}  Kd8 {[%clk 0:01:08]} 63. Ba4 {[%clk 0:00:48]}  Ng6 {[%clk 0:01:08]} 64. Ke2 {[%clk 0:00:48]}  Kc7 {[%clk 0:01:08]} 65. Ke1 {[%clk 0:00:45]}  Nf8 {[%clk 0:01:03]} 66. Ke2 {[%clk 0:00:44]}  Kb6 {[%clk 0:00:59]} 67. Be8 {[%clk 0:00:43]}  Ka5 {[%clk 0:00:56]} 68. Bc6 {[%clk 0:00:41]}  Kb6 {[%clk 0:00:56]} 69. Be8 {[%clk 0:00:41]}  Kc7 {[%clk 0:00:56]} 70. Ba4 {[%clk 0:00:40]}  Ng6 {[%clk 0:00:49]} 71. Be8 {[%clk 0:00:39]}  Ne7 {[%clk 0:00:49]} 72. Ba4 {[%clk 0:00:38]}  Nc8 {[%clk 0:00:50]} 73. Kd3 {[%clk 0:00:38]}  Kb6 {[%clk 0:00:46]} 74. Bd7 {[%clk 0:00:37]}  Na7 {[%clk 0:00:46]} 75. Kc3 {[%clk 0:00:36]}  Ka5 {[%clk 0:00:46]} 76. Kb3 {[%clk 0:00:35]}  Kb6 {[%clk 0:00:46]} 77. Ka4 {[%clk 0:00:34]}  Kb7 {[%clk 0:00:44]} 78. Ka5 {[%clk 0:00:33]}  Kc7 {[%clk 0:00:14]} 79. Kxa6 {[%clk 0:00:31]}  Kb8 {[%clk 0:00:00]} 80. Kb6 {[%clk 0:00:27]} 1-0


[Site "https://www.chess.com"]

[Event "Titled Tuesday Blitz June 20 Early 2023"]
[White "Goltseva, Ekaterina"]
[Black "Topalov, Aleksandar"]
[WhiteFideId "24173770"]
[BlackFideId "925659"]
[WhiteElo "2114"]
[BlackElo "2151"]
[Result "0-1"]
[Round "6"]
[TimeControl "180+2"]
[Date "2023.06.20"]
[WhiteClock "0:00:00"]
[BlackClock "0:00:18"]
[Board "142"]

1. Nf3 {[%clk 0:02:44]}  Nf6 {[%clk 0:02:59]} 2. c4 {[%clk 0:02:44]}  g6 {[%clk 0:02:59]} 3. Nc3 {[%clk 0:02:43]}  Bg7 {[%clk 0:02:59]} 4. e4 {[%clk 0:02:43]}  O-O {[%clk 0:02:59]} 5. d4 {[%clk 0:02:43]}  c5 {[%clk 0:02:59]} 6. d5 {[%clk 0:02:42]}  d6 {[%clk 0:03:00]} 7. h3 {[%clk 0:02:42]}  Na6 {[%clk 0:03:00]} 8. Bd3 {[%clk 0:02:40]}  Nc7 {[%clk 0:03:00]} 9. O-O {[%clk 0:02:40]}  e5 {[%clk 0:03:00]} 10. Bg5 {[%clk 0:02:38]}  h6 {[%clk 0:03:00]} 11. Be3 {[%clk 0:02:38]}  Nh5 {[%clk 0:03:00]} 12. Qd2 {[%clk 0:02:35]}  g5 {[%clk 0:02:59]} 13. Rfe1 {[%clk 0:02:30]}  Nf4 {[%clk 0:02:59]} 14. Bf1 {[%clk 0:02:30]}  Qf6 {[%clk 0:02:57]} 15. Nh2 {[%clk 0:02:18]}  Qg6 {[%clk 0:02:55]} 16. Kh1 {[%clk 0:02:12]}  f5 {[%clk 0:02:50]} 17. g3 {[%clk 0:02:09]}  fxe4 {[%clk 0:02:47]} 18. gxf4 {[%clk 0:02:03]}  exf4 {[%clk 0:02:47]} 19. Bg2 {[%clk 0:01:57]}  fxe3 {[%clk 0:02:41]} 20. fxe3 {[%clk 0:01:51]}  Bf5 {[%clk 0:02:38]} 21. Nf1 {[%clk 0:01:50]}  Be5 {[%clk 0:02:24]} 22. Qc2 {[%clk 0:01:46]}  g4 {[%clk 0:02:22]} 23. Bxe4 {[%clk 0:01:39]}  gxh3 {[%clk 0:02:18]} 24. Nh2 {[%clk 0:01:34]}  Kh8 {[%clk 0:01:46]} 25. Rg1 {[%clk 0:01:30]}  Bxe4+ {[%clk 0:01:42]} 26. Nxe4 {[%clk 0:01:26]}  Qh7 {[%clk 0:01:35]} 27. Rg4 {[%clk 0:01:09]}  Rae8 {[%clk 0:01:31]} 28. Rag1 {[%clk 0:00:55]}  Re7 {[%clk 0:01:22]} 29. Rg6 {[%clk 0:00:51]}  Ne8 {[%clk 0:01:13]} 30. Nc3 {[%clk 0:00:32]}  Rg7 {[%clk 0:01:10]} 31. Qe4 {[%clk 0:00:14]}  Bxc3 {[%clk 0:01:07]} 32. bxc3 {[%clk 0:00:13]}  Re7 {[%clk 0:00:59]} 33. Qg4 {[%clk 0:00:12]}  Nf6 {[%clk 0:00:56]} 34. Qh4 {[%clk 0:00:11]}  Ng8 {[%clk 0:00:50]} 35. Qxh3 {[%clk 0:00:05]}  a6 {[%clk 0:00:36]} 36. Qg3 {[%clk 0:00:06]}  Rd7 {[%clk 0:00:31]} 37. Nf3 {[%clk 0:00:06]}  Nf6 {[%clk 0:00:21]} 38. Nh4 {[%clk 0:00:06]}  Ne4 {[%clk 0:00:20]} 39. Qg2 {[%clk 0:00:04]}  Ng5 {[%clk 0:00:20]} 40. Rxg5 {[%clk 0:00:03]}  hxg5 {[%clk 0:00:20]} 41. Qxg5 {[%clk 0:00:03]}  Rg7 {[%clk 0:00:19]} 42. Qxg7+ {[%clk 0:00:02]}  Qxg7 {[%clk 0:00:19]} 43. Rxg7 {[%clk 0:00:03]}  Kxg7 {[%clk 0:00:19]} 44. Kg2 {[%clk 0:00:03]}  Kf6 {[%clk 0:00:19]} 45. Nf3 {[%clk 0:00:04]}  Kf5 {[%clk 0:00:18]} 46. Kf2 {[%clk 0:00:04]}  Ke4 {[%clk 0:00:18]} 47. Ke2 {[%clk 0:00:00]}  Rxf3 {[%clk 0:00:18]} 0-1


[Site "https://www.chess.com"]

[Event "Titled Tuesday Blitz June 20 Early 2023"]
[White "Rios Escobar, Adan"]
[Black "Jiganchine, Roman"]
[WhiteFideId "3403645"]
[BlackFideId "2603667"]
[WhiteElo "2486"]
[BlackElo "2321"]
[Result "1-0"]
[Round "6"]
[TimeControl "180+2"]
[Date "2023.06.20"]
[WhiteClock "0:00:08"]
[BlackClock "0:00:01"]
[Board "147"]

1. d4 {[%clk 0:03:00]}  d5 {[%clk 0:02:59]} 2. g3 {[%clk 0:03:01]}  Nf6 {[%clk 0:02:56]} 3. Nf3 {[%clk 0:02:59]}  c6 {[%clk 0:02:56]} 4. c4 {[%clk 0:02:59]}  Bf5 {[%clk 0:02:55]} 5. Nc3 {[%clk 0:03:00]}  e6 {[%clk 0:02:55]} 6. Nh4 {[%clk 0:03:01]}  Be4 {[%clk 0:02:49]} 7. f3 {[%clk 0:03:00]}  Bg6 {[%clk 0:02:48]} 8. Qb3 {[%clk 0:03:01]}  Qb6 {[%clk 0:02:37]} 9. Nxg6 {[%clk 0:02:58]}  hxg6 {[%clk 0:02:35]} 10. c5 {[%clk 0:02:53]}  Qc7 {[%clk 0:02:35]} 11. e4 {[%clk 0:02:46]}  Nbd7 {[%clk 0:02:28]} 12. e5 {[%clk 0:02:27]}  Bxc5 {[%clk 0:02:15]} 13. exf6 {[%clk 0:02:21]}  Bxd4 {[%clk 0:02:15]} 14. fxg7 {[%clk 0:02:18]}  Bxg7 {[%clk 0:02:14]} 15. Bf4 {[%clk 0:02:15]}  e5 {[%clk 0:02:12]} 16. Bd2 {[%clk 0:02:14]}  O-O {[%clk 0:01:51]} 17. Bg2 {[%clk 0:02:03]}  Nc5 {[%clk 0:01:46]} 18. Qc2 {[%clk 0:02:02]}  e4 {[%clk 0:01:34]} 19. O-O {[%clk 0:01:27]}  Qb6 {[%clk 0:01:26]} 20. Kh1 {[%clk 0:01:20]}  exf3 {[%clk 0:01:22]} 21. Rxf3 {[%clk 0:01:17]}  d4 {[%clk 0:01:22]} 22. Ne4 {[%clk 0:00:49]}  Nxe4 {[%clk 0:01:17]} 23. Qxe4 {[%clk 0:00:50]}  Qxb2 {[%clk 0:01:17]} 24. Rd1 {[%clk 0:00:41]}  Rae8 {[%clk 0:01:17]} 25. Qb1 {[%clk 0:00:19]}  Qxb1 {[%clk 0:01:07]} 26. Rxb1 {[%clk 0:00:20]}  Re2 {[%clk 0:01:07]} 27. Rd3 {[%clk 0:00:20]}  c5 {[%clk 0:00:56]} 28. Bf1 {[%clk 0:00:21]}  Re7 {[%clk 0:00:52]} 29. Ra3 {[%clk 0:00:20]}  a6 {[%clk 0:00:51]} 30. Rb6 {[%clk 0:00:19]}  Rc8 {[%clk 0:00:47]} 31. Bg2 {[%clk 0:00:17]}  c4 {[%clk 0:00:45]} 32. Rxb7 {[%clk 0:00:17]}  c3 {[%clk 0:00:40]} 33. Rxe7 {[%clk 0:00:15]}  cxd2 {[%clk 0:00:39]} 34. Bf3 {[%clk 0:00:16]}  Rc1+ {[%clk 0:00:24]} 35. Kg2 {[%clk 0:00:15]}  Re1 {[%clk 0:00:24]} 36. Rd7 {[%clk 0:00:12]}  d1=Q {[%clk 0:00:16]} 37. Bxd1 {[%clk 0:00:12]}  Rxd1 {[%clk 0:00:17]} 38. Rxa6 {[%clk 0:00:12]}  Rd2+ {[%clk 0:00:14]} 39. Kh3 {[%clk 0:00:12]}  Rf2 {[%clk 0:00:11]} 40. Raa7 {[%clk 0:00:10]}  Be5 {[%clk 0:00:11]} 41. a4 {[%clk 0:00:09]}  Kg7 {[%clk 0:00:10]} 42. a5 {[%clk 0:00:09]}  Kh6 {[%clk 0:00:10]} 43. Rxf7 {[%clk 0:00:08]}  Rb2 {[%clk 0:00:06]} 44. Rae7 {[%clk 0:00:07]}  Bd6 {[%clk 0:00:05]} 45. Rh7+ {[%clk 0:00:07]}  Kg5 {[%clk 0:00:04]} 46. Re4 {[%clk 0:00:07]}  Bc5 {[%clk 0:00:04]} 47. Re5+ {[%clk 0:00:07]}  Kf6 {[%clk 0:00:01]} 48. Rxc5 {[%clk 0:00:08]} 1-0


[Site "https://www.chess.com"]

[Event "Titled Tuesday Blitz June 20 Early 2023"]
[White "Ziatdinov, Raset"]
[Black "Vovk, Orest"]
[WhiteFideId "2015323"]
[BlackFideId "14113490"]
[WhiteElo "2220"]
[BlackElo "2215"]
[Result "1-0"]
[Round "6"]
[TimeControl "180+2"]
[Date "2023.06.20"]
[WhiteClock "0:01:21"]
[BlackClock "0:00:37"]
[Board "148"]

1. e4 {[%clk 0:03:00]}  g5 {[%clk 0:02:59]} 2. d4 {[%clk 0:03:00]}  g4 {[%clk 0:02:59]} 3. h3 {[%clk 0:02:57]}  d5 {[%clk 0:02:57]} 4. e5 {[%clk 0:02:55]}  c5 {[%clk 0:02:58]} 5. c3 {[%clk 0:02:54]}  Nc6 {[%clk 0:02:58]} 6. hxg4 {[%clk 0:02:53]}  Qb6 {[%clk 0:02:58]} 7. dxc5 {[%clk 0:02:47]}  Qxc5 {[%clk 0:02:57]} 8. f4 {[%clk 0:02:44]}  h5 {[%clk 0:02:53]} 9. Na3 {[%clk 0:02:38]}  Bxg4 {[%clk 0:02:52]} 10. Be2 {[%clk 0:02:38]}  O-O-O {[%clk 0:02:47]} 11. Bxg4+ {[%clk 0:02:37]}  hxg4 {[%clk 0:02:46]} 12. Rxh8 {[%clk 0:02:36]}  Qxg1+ {[%clk 0:02:44]} 13. Kd2 {[%clk 0:02:35]}  Qxg2+ {[%clk 0:02:32]} 14. Qe2 {[%clk 0:02:34]}  Qg3 {[%clk 0:02:14]} 15. Rxg8 {[%clk 0:02:33]}  d4 {[%clk 0:02:14]} 16. Qxg4+ {[%clk 0:02:28]}  Qxg4 {[%clk 0:02:11]} 17. Rxg4 {[%clk 0:02:28]}  dxc3+ {[%clk 0:02:11]} 18. Kxc3 {[%clk 0:02:27]}  e6 {[%clk 0:02:11]} 19. Nc2 {[%clk 0:02:26]}  b5 {[%clk 0:02:09]} 20. b4 {[%clk 0:02:23]}  a5 {[%clk 0:02:06]} 21. a3 {[%clk 0:02:23]}  a4 {[%clk 0:01:59]} 22. Be3 {[%clk 0:02:22]}  Ne7 {[%clk 0:01:59]} 23. Rg2 {[%clk 0:02:17]}  Nd5+ {[%clk 0:01:58]} 24. Kb2 {[%clk 0:02:17]}  Bh6 {[%clk 0:01:56]} 25. Rd1 {[%clk 0:02:15]}  Kb7 {[%clk 0:01:49]} 26. Bc1 {[%clk 0:02:12]}  Rc8 {[%clk 0:01:45]} 27. Ne1 {[%clk 0:02:06]}  Nb6 {[%clk 0:01:37]} 28. Nd3 {[%clk 0:01:58]}  Nc4+ {[%clk 0:01:36]} 29. Ka2 {[%clk 0:01:56]}  Bf8 {[%clk 0:01:35]} 30. Nc5+ {[%clk 0:01:49]}  Bxc5 {[%clk 0:01:35]} 31. bxc5 {[%clk 0:01:49]}  Rxc5 {[%clk 0:01:35]} 32. Rd7+ {[%clk 0:01:49]}  Ka6 {[%clk 0:01:28]} 33. Rxf7 {[%clk 0:01:48]}  Rd5 {[%clk 0:01:27]} 34. Rf6 {[%clk 0:01:45]}  b4 {[%clk 0:01:25]} 35. axb4 {[%clk 0:01:44]}  Kb5 {[%clk 0:01:25]} 36. Rxe6 {[%clk 0:01:44]}  Rd1 {[%clk 0:01:22]} 37. Rc2 {[%clk 0:01:42]}  Kxb4 {[%clk 0:01:20]} 38. f5 {[%clk 0:01:39]}  a3 {[%clk 0:00:53]} 39. Rc6 {[%clk 0:01:29]}  Na5 {[%clk 0:00:51]} 40. Bd2+ {[%clk 0:01:22]}  Ka4 {[%clk 0:00:45]} 41. Bxa5 {[%clk 0:01:21]}  Kxa5 {[%clk 0:00:37]} 42. f6 {[%clk 0:01:21]} 1-0


[Site "https://www.chess.com"]

[Event "Titled Tuesday Blitz June 20 Early 2023"]
[White "Rodriguez Polo, Mateo"]
[Black "Morgunov, Anatoly"]
[WhiteFideId "24509396"]
[BlackFideId "4145909"]
[WhiteElo "2117"]
[BlackElo "2237"]
[Result "1-0"]
[Round "6"]
[TimeControl "180+2"]
[Date "2023.06.20"]
[WhiteClock "0:01:43"]
[BlackClock "0:01:08"]
[Board "149"]

1. Nf3 {[%clk 0:03:00]}  Nf6 {[%clk 0:02:58]} 2. c4 {[%clk 0:02:56]}  e6 {[%clk 0:02:58]} 3. g3 {[%clk 0:02:56]}  d5 {[%clk 0:02:57]} 4. Bg2 {[%clk 0:02:57]}  Be7 {[%clk 0:02:57]} 5. O-O {[%clk 0:02:57]}  c5 {[%clk 0:02:57]} 6. b3 {[%clk 0:02:56]}  d4 {[%clk 0:02:56]} 7. e3 {[%clk 0:02:56]}  Nc6 {[%clk 0:02:57]} 8. exd4 {[%clk 0:02:56]}  cxd4 {[%clk 0:02:58]} 9. Bb2 {[%clk 0:02:56]}  O-O {[%clk 0:02:57]} 10. Re1 {[%clk 0:02:56]}  Bc5 {[%clk 0:02:46]} 11. d3 {[%clk 0:02:55]}  Re8 {[%clk 0:02:44]} 12. a3 {[%clk 0:02:55]}  a5 {[%clk 0:02:44]} 13. Ne5 {[%clk 0:02:56]}  Nxe5 {[%clk 0:02:38]} 14. Rxe5 {[%clk 0:02:57]}  Bd6 {[%clk 0:02:31]} 15. Rb5 {[%clk 0:02:56]}  e5 {[%clk 0:02:20]} 16. Nd2 {[%clk 0:02:56]}  Qc7 {[%clk 0:02:11]} 17. b4 {[%clk 0:02:55]}  axb4 {[%clk 0:02:11]} 18. axb4 {[%clk 0:02:56]}  Rxa1 {[%clk 0:02:07]} 19. Qxa1 {[%clk 0:02:57]}  b6 {[%clk 0:02:02]} 20. c5 {[%clk 0:02:32]}  bxc5 {[%clk 0:01:59]} 21. bxc5 {[%clk 0:02:32]}  Bxc5 {[%clk 0:01:53]} 22. Nc4 {[%clk 0:02:17]}  e4 {[%clk 0:01:47]} 23. Qa5 {[%clk 0:02:09]}  Ba7 {[%clk 0:01:31]} 24. Qxc7 {[%clk 0:02:07]}  exd3 {[%clk 0:01:18]} 25. Qxa7 {[%clk 0:01:51]}  Re1+ {[%clk 0:01:16]} 26. Bf1 {[%clk 0:01:52]}  Bh3 {[%clk 0:01:13]} 27. Rb8+ {[%clk 0:01:48]}  Ne8 {[%clk 0:01:13]} 28. Nd2 {[%clk 0:01:48]}  Bxf1 {[%clk 0:01:11]} 29. Nxf1 {[%clk 0:01:47]}  d2 {[%clk 0:01:11]} 30. Rxe8+ {[%clk 0:01:43]}  Rxe8 {[%clk 0:01:11]} 31. Qxd4 {[%clk 0:01:43]}  d1=Q {[%clk 0:01:08]} 32. Qxg7# {[%clk 0:01:43]} 1-0


[Site "https://www.chess.com"]

[Event "Titled Tuesday Blitz June 20 Early 2023"]
[White "Rosh Jain"]
[Black "Luna Javier, Edgar Froylan"]
[WhiteFideId "25789465"]
[BlackFideId "5120101"]
[WhiteElo "2233"]
[BlackElo "2091"]
[Result "1-0"]
[Round "6"]
[TimeControl "180+2"]
[Date "2023.06.20"]
[WhiteClock "0:00:05"]
[BlackClock "0:00:04"]
[Board "151"]

1. e4 {[%clk 0:02:55]}  c5 {[%clk 0:02:59]} 2. Nf3 {[%clk 0:02:54]}  Nc6 {[%clk 0:02:59]} 3. d4 {[%clk 0:02:53]}  cxd4 {[%clk 0:03:00]} 4. Nxd4 {[%clk 0:02:54]}  g6 {[%clk 0:02:59]} 5. Nc3 {[%clk 0:02:53]}  Bg7 {[%clk 0:02:59]} 6. Be3 {[%clk 0:02:53]}  Nf6 {[%clk 0:03:00]} 7. Qd2 {[%clk 0:02:51]}  Ng4 {[%clk 0:02:53]} 8. Nxc6 {[%clk 0:02:51]}  dxc6 {[%clk 0:02:48]} 9. Qxd8+ {[%clk 0:02:50]}  Kxd8 {[%clk 0:02:49]} 10. O-O-O+ {[%clk 0:02:50]}  Kc7 {[%clk 0:02:49]} 11. Bf4+ {[%clk 0:02:50]}  e5 {[%clk 0:02:44]} 12. Bg3 {[%clk 0:02:49]}  Bh6+ {[%clk 0:02:34]} 13. Kb1 {[%clk 0:02:39]}  Bf4 {[%clk 0:02:35]} 14. Bxf4 {[%clk 0:02:36]}  exf4 {[%clk 0:02:35]} 15. Rd2 {[%clk 0:02:35]}  Rd8 {[%clk 0:02:30]} 16. Bd3 {[%clk 0:02:35]}  Be6 {[%clk 0:02:20]} 17. f3 {[%clk 0:02:34]}  Ne3 {[%clk 0:02:19]} 18. g3 {[%clk 0:02:30]}  fxg3 {[%clk 0:02:00]} 19. hxg3 {[%clk 0:02:28]}  h5 {[%clk 0:02:01]} 20. b3 {[%clk 0:02:18]}  f5 {[%clk 0:01:48]} 21. exf5 {[%clk 0:01:55]}  Bxf5 {[%clk 0:01:32]} 22. Re1 {[%clk 0:01:45]}  Nd5 {[%clk 0:01:06]} 23. Nxd5+ {[%clk 0:01:36]}  Rxd5 {[%clk 0:01:07]} 24. Re7+ {[%clk 0:01:35]}  Kb6 {[%clk 0:01:07]} 25. Kb2 {[%clk 0:01:09]}  Rad8 {[%clk 0:01:05]} 26. Kc3 {[%clk 0:01:08]}  Rc5+ {[%clk 0:01:03]} 27. Kb2 {[%clk 0:01:08]}  Bxd3 {[%clk 0:00:59]} 28. cxd3 {[%clk 0:01:07]}  Rg5 {[%clk 0:00:57]} 29. g4 {[%clk 0:00:44]}  hxg4 {[%clk 0:00:55]} 30. fxg4 {[%clk 0:00:40]}  Rxg4 {[%clk 0:00:56]} 31. Kc2 {[%clk 0:00:30]}  Rd5 {[%clk 0:00:49]} 32. Rf2 {[%clk 0:00:24]}  Rg3 {[%clk 0:00:34]} 33. Rff7 {[%clk 0:00:18]}  Rgxd3 {[%clk 0:00:30]} 34. Rxb7+ {[%clk 0:00:18]}  Kc5 {[%clk 0:00:31]} 35. Rxa7 {[%clk 0:00:18]}  Rd2+ {[%clk 0:00:29]} 36. Kc1 {[%clk 0:00:18]}  Rh2 {[%clk 0:00:14]} 37. Ra5+ {[%clk 0:00:17]}  Kd4 {[%clk 0:00:14]} 38. Ra4+ {[%clk 0:00:08]}  Ke3 {[%clk 0:00:12]} 39. Re7+ {[%clk 0:00:07]}  Kf3 {[%clk 0:00:11]} 40. Rf7+ {[%clk 0:00:07]}  Kg3 {[%clk 0:00:10]} 41. Rf6 {[%clk 0:00:06]}  Rc5+ {[%clk 0:00:07]} 42. Kb1 {[%clk 0:00:05]}  g5 {[%clk 0:00:05]} 43. Re4 {[%clk 0:00:02]}  Rd5 {[%clk 0:00:03]} 44. Re3+ {[%clk 0:00:02]}  Kg4 {[%clk 0:00:03]} 45. Re4+ {[%clk 0:00:02]}  Kh5 {[%clk 0:00:04]} 46. Re1 {[%clk 0:00:02]}  Rc5 {[%clk 0:00:01]} 47. Rf7 {[%clk 0:00:01]}  Kh4 {[%clk 0:00:01]} 48. Rh7+ {[%clk 0:00:01]}  Kg3 {[%clk 0:00:01]} 49. Rg1+ {[%clk 0:00:02]}  Rg2 {[%clk 0:00:01]} 50. Rxg2+ {[%clk 0:00:02]}  Kxg2 {[%clk 0:00:02]} 51. Rg7 {[%clk 0:00:03]}  Kf3 {[%clk 0:00:02]} 52. b4 {[%clk 0:00:03]}  g4 {[%clk 0:00:03]} 53. bxc5 {[%clk 0:00:03]}  g3 {[%clk 0:00:04]} 54. Rxg3+ {[%clk 0:00:03]}  Kxg3 {[%clk 0:00:04]} 55. a4 {[%clk 0:00:04]}  Kf4 {[%clk 0:00:05]} 56. a5 {[%clk 0:00:04]}  Ke5 {[%clk 0:00:04]} 57. a6 {[%clk 0:00:05]} 1-0


[Site "https://www.chess.com"]